{"text_format":"1","workbook":"xlsx","n_sheets":3,"sheets":["QUOTATION","BoQ 01 ( Technical )","BoQ 01 ( Financial )"],"not_rendered":{"charts":0,"images":4,"macros":0,"external_links":1,"defined_names":13,"comments":0,"pivot_tables":0},"unopened":[],"bounds":{"document_bytes":16777216,"sheet_cells":100000,"rows_first":2000,"rows_last":500,"rows_between":2000,"halvings":0,"cell_chars":16384,"cell_head_chars":4096},"cells_cut":0,"cells_raw":0,"read":"whole","date_system":"1900"}

{"sheet":"QUOTATION","index":0,"n_rows":29,"n_cols":8,"rows_kept":29,"cut":false,"hidden":false,"merged":[[28,7,29,7],[18,2,18,5],[16,2,16,3],[17,2,17,3],[1,1,1,7],[4,4,4,6],[5,4,5,6],[7,2,8,4],[7,7,8,7],[9,6,9,7],[22,2,22,3],[23,2,23,3],[24,2,24,3],[25,2,25,3],[28,2,29,3]]}
[null,"QUOTATION REQUEST | TEKLİF TALEBİ - AL AMEEN FOR HUMANITARIAN SUPPORT "]
[null,"طلب عرض سعر"]
[]
[]
[null,null,"PR date | SAT tarihi:",null,{"$f":"CONCATENATE('[1]PR FORM'!H8,\"-\",'[1]PR FORM'!I8,\"-\",'[1]PR FORM'!J8)","v":"12-8-2024"},null,null,"تاريخ طلب الشراء:"]
[null,null,"\nReference of the PR | SAT'nin referansı:",null,"PR/AL128H24&AL129H24/MSF-FRB.17 - B.12/GZT/PRO-HE/12-8-2024/Raju&Badanli-B.17 - B.12-012",null,null,"الرقم المرجعي لطلب الشراء:"]
[]
[null,null,"Quotation valid* from ....../......./........... until ....../......./...........\nTeklif geçerli*  tarihinden ....../......./........... tarihine kadar ....../....../…….... ",null,null,null,null,"صلاحية عرض السعر* من ....../......./........... إلى ....../......./..........."]
[]
[null,null,"*Please note that quotation cannot be valid for less than 3 days or more than 30 days.  | Teklifin 3 günden az veya 30 günden fazla geçerli olamayacağını lütfen unutmayın.",null,null,null," ملاحظة : عرض السعر يكون غير صالح لمدة أقل من ثلاثة أيام أو أكثر من 30 يوم."]
[null,null,"Company | Şirket:",null,null,null,null,"الشركة/المؤسسة:"]
[null,null,"Representative | Temsilci:",null,null,null,null,"اسم الشخص المسؤول:"]
[null,null,"Tel:",null,null,null,null,"الهاتف:"]
[null,null,"Email | E-posta:",null,null,null,null,"البريد الالكتروني:"]
[null,null,"Address | Adres:",null,null,null,null,"العنوان:"]
[]
[null,null,"Items |\nالعناصر",null,"Unit | Birim\nالواحدة","Quantity | Miktar\nالكمية",{"$f":"\"Unit Price in \"&CurrnecyT&\" includes taxes and delivery\"&\" | Birim Fiyata vergiler ve teslimat dahildir\"&\"\n| السعر الإفرادي متضمناً الضريبة \"","v":"Unit Price in EURO includes taxes and delivery | Birim Fiyata vergiler ve teslimat dahildir\n| السعر الإفرادي متضمناً الضريبة "},{"$f":"\"Total Price in \"&CurrnecyT&\" includes taxes and delivery \"&\" | Toplam Fiyata vergiler ve teslimat dahildir\"&\n\"| السعر الإجمالي متضمناً الضريبة والتوصيل\"","v":"Total Price in EURO includes taxes and delivery  | Toplam Fiyata vergiler ve teslimat dahildir| السعر الإجمالي متضمناً الضريبة والتوصيل"}]
[null,1,{"$f":"'[1]PR FORM'!B16","v":"Medications - PHC (BoQ 01)"},null,{"$f":"'[1]PR FORM'!C16","v":"Lumpsum"},{"$f":"'[1]PR FORM'!D16*'[1]PR FORM'!E16","v":1}]
[null,null,"Total | Toplam |  المجموع"]
[]
[null," Comments/Technical specifications | Yorumlar/Teknik özellikler | التعليقات/المواصفات التقنية"]
[]
[null,null,"Total price (in letter) | Toplam fiyat (mektupla)",null,null,null,null," السعر الكلي ( كتابةً) :"]
[null,null,"Available now | Şu an müsait:",null,null,null,null," كل العناصر متوفرة:"]
[null,null,"The requested quantity is entirely available | İstenen miktar tamamen mevcuttur",null,null,null,null," الكمية المطلوبة متوفرة :"]
[null,null,"Delivery date | Teslim tarihi",null,null,null,null," تاريخ التسليم:"]
[]
[]
[null,null,"\nSupplier's signature and stamp | Tedarikçinin imzası ve kaşesi: ",null,null,null,null,"ختم وتوقيع المورد : "]

{"sheet":"BoQ 01 ( Technical )","index":1,"n_rows":108,"n_cols":10,"rows_kept":108,"cut":false,"hidden":false,"merged":[[0,3,0,9]]}
["BoQ 01",null,"PR/AL128H24&AL129H24/MSF-FRB.17 - B.12/GZT/PRO-HE/12-8-2024/Raju&Badanli-B.17 - B.12-012","Technical"]
["SN","Category\nKategori","Technical Specifications\nTeknik Özellikler","Unit\nBirim","Trade Name\nTicari Adı","Expiry Date\nSon Kullanma Tarihi","Country of Origin\nMenşei Ülke","Package & Form\nPaket ve Form","Dose\nDoz","Company Or Agent Name\nŞirket veya Temsilci Adı "]
[{"$f":"IF(ISBLANK(B3),\"\",SUBTOTAL(103,$B$3:B3))","v":1},"Medicines","Acetylsalicylic Acid (Aspirin), 75 mg, Gastro-Resistant Tab.","Tablet"]
[{"$f":"IF(ISBLANK(B4),\"\",SUBTOTAL(103,$B$3:B4))","v":2},"Medicines","Allopurinol 300mg Tab","Tablet"]
[{"$f":"IF(ISBLANK(B5),\"\",SUBTOTAL(103,$B$3:B5))","v":3},"Medicines","Aluminium Hydroxide 400mg / Magnesium Hydrox. 400mg,Chew.Tab.","Tablet"]
[{"$f":"IF(ISBLANK(B6),\"\",SUBTOTAL(103,$B$3:B6))","v":4},"Medicines","Amikacin 100Mg","Ampoule"]
[{"$f":"IF(ISBLANK(B7),\"\",SUBTOTAL(103,$B$3:B7))","v":5},"Medicines","Amikacin 500mg","Ampoule"]
[{"$f":"IF(ISBLANK(B8),\"\",SUBTOTAL(103,$B$3:B8))","v":6},"Medicines","Amlodipine 5Mg","Tablet"]
[{"$f":"IF(ISBLANK(B9),\"\",SUBTOTAL(103,$B$3:B9))","v":7},"Medicines","Amlodipine/Valsartan 160/5","Tablet"]
[{"$f":"IF(ISBLANK(B10),\"\",SUBTOTAL(103,$B$3:B10))","v":8},"Medicines","Amoxicillin 228mg / Clavulanic Acid, Syrup 70ml","Bottle"]
[{"$f":"IF(ISBLANK(B11),\"\",SUBTOTAL(103,$B$3:B11))","v":9},"Medicines","Amoxicillin 400mg / Clavulanic Acid, 57 mg / 5ml, Powder Oral Susp 70ml","Oral Suspension"]
[{"$f":"IF(ISBLANK(B12),\"\",SUBTOTAL(103,$B$3:B12))","v":10},"Medicines","Amoxicillin 500mg, Tab.","Capsule"]
[{"$f":"IF(ISBLANK(B13),\"\",SUBTOTAL(103,$B$3:B13))","v":11},"Medicines","Amoxicillin 875mg / Clavulanic Acid 125mg, Tab","Tablet"]
[{"$f":"IF(ISBLANK(B14),\"\",SUBTOTAL(103,$B$3:B14))","v":12},"Medicines","Amoxicillin, 250mg/5ml, Powder Oral Susp., 100 Ml, Bot.","Oral Suspension"]
[{"$f":"IF(ISBLANK(B15),\"\",SUBTOTAL(103,$B$3:B15))","v":13},"Medicines","Ascorbic Acid (Vitamin C), 250 mg, Tab.","Tablet"]
[{"$f":"IF(ISBLANK(B16),\"\",SUBTOTAL(103,$B$3:B16))","v":14},"Medicines","Atenolol 50mg","Tablet"]
[{"$f":"IF(ISBLANK(B17),\"\",SUBTOTAL(103,$B$3:B17))","v":15},"Medicines","Atorvastatin 40mg","Tablet"]
[{"$f":"IF(ISBLANK(B18),\"\",SUBTOTAL(103,$B$3:B18))","v":16},"Medicines","Azithromycin 200Mg/5Ml Syrup","Bottle"]
[{"$f":"IF(ISBLANK(B19),\"\",SUBTOTAL(103,$B$3:B19))","v":17},"Medicines","Azithromycin 500Mg","Tablet"]
[{"$f":"IF(ISBLANK(B20),\"\",SUBTOTAL(103,$B$3:B20))","v":18},"Medicines","B.Comblex / Tab","Tablet"]
[{"$f":"IF(ISBLANK(B21),\"\",SUBTOTAL(103,$B$3:B21))","v":19},"Medicines","Beclometasone Dipropionate, 0.10mg","inhalation"]
[{"$f":"IF(ISBLANK(B22),\"\",SUBTOTAL(103,$B$3:B22))","v":20},"Medicines","Benzyl Benzoate, 25%, Lotion, 100 ml","Bottle"]
[{"$f":"IF(ISBLANK(B23),\"\",SUBTOTAL(103,$B$3:B23))","v":21},"Medicines","Bisacodyl 10 mg Tab ( Laxine )","Tablet"]
[{"$f":"IF(ISBLANK(B24),\"\",SUBTOTAL(103,$B$3:B24))","v":22},"Medicines","Bisoprolol 5Mg","Tablet"]
[{"$f":"IF(ISBLANK(B25),\"\",SUBTOTAL(103,$B$3:B25))","v":23},"Medicines","Bisoprolol Fumarate, 10 mg, Break.Tab.","Tablet"]
[{"$f":"IF(ISBLANK(B26),\"\",SUBTOTAL(103,$B$3:B26))","v":24},"Medicines","Calcium+Vit D3","Tablet"]
[{"$f":"IF(ISBLANK(B27),\"\",SUBTOTAL(103,$B$3:B27))","v":25},"Medicines","Carbamazepine, 200 mg, Tab.","Tablet"]
[{"$f":"IF(ISBLANK(B28),\"\",SUBTOTAL(103,$B$3:B28))","v":26},"Medicines","Carbamazepine, 400mg, Tab.","Tablet"]
[{"$f":"IF(ISBLANK(B29),\"\",SUBTOTAL(103,$B$3:B29))","v":27},"Medicines","Cefixime 400 Mg","Tablet"]
[{"$f":"IF(ISBLANK(B30),\"\",SUBTOTAL(103,$B$3:B30))","v":28},"Medicines","Cefixime, 100mg/5ml, Powder For Oral Susp., 60 Ml, Bot.","Bottle"]
[{"$f":"IF(ISBLANK(B31),\"\",SUBTOTAL(103,$B$3:B31))","v":29},"Medicines","Ceftriaxone Sodium, Eq. 1 G Base, Powder, Vial","Vial"]
[{"$f":"IF(ISBLANK(B32),\"\",SUBTOTAL(103,$B$3:B32))","v":30},"Medicines","Ceftriaxone Sodium, Eq.1 G Base, Powder, Vial + Lidocaine Im","Vial"]
[{"$f":"IF(ISBLANK(B33),\"\",SUBTOTAL(103,$B$3:B33))","v":31},"Medicines","Chlorpheniramine Maleate (2mg) + Paracetamol (500mg) + Phenylephrine (10mg) Tab","Tablet"]
[{"$f":"IF(ISBLANK(B34),\"\",SUBTOTAL(103,$B$3:B34))","v":32},"Medicines","Ciprofloxacin Hydrochloride, Eq. 500 mg Base, Tab.","Tablet"]
[{"$f":"IF(ISBLANK(B35),\"\",SUBTOTAL(103,$B$3:B35))","v":33},"Medicines","Clopidogrel 75mg","Tablet"]
[{"$f":"IF(ISBLANK(B36),\"\",SUBTOTAL(103,$B$3:B36))","v":34},"Medicines","Clotrimazole 1% Topical Cream, Tube 20gr Tube","Cream"]
[{"$f":"IF(ISBLANK(B37),\"\",SUBTOTAL(103,$B$3:B37))","v":35},"Medicines","Clotrimazole, 500 mg, Vaginal Tab. + Applicator","Ovuol"]
[{"$f":"IF(ISBLANK(B38),\"\",SUBTOTAL(103,$B$3:B38))","v":36},"Medicines","Dexamethasone 8mg/ml 2 ml","Ampoule"]
[{"$f":"IF(ISBLANK(B39),\"\",SUBTOTAL(103,$B$3:B39))","v":37},"Medicines","Dextrose (Glucose), 5%, 1000 Ml, Flex. Bag, Pvc Free","Bag"]
[{"$f":"IF(ISBLANK(B40),\"\",SUBTOTAL(103,$B$3:B40))","v":38},"Medicines","Diazepam 5mg/Ml ,2ml","Ampoule"]
[{"$f":"IF(ISBLANK(B41),\"\",SUBTOTAL(103,$B$3:B41))","v":39},"Medicines","Diclofenac Sodium 25 mg","Suppostory"]
[{"$f":"IF(ISBLANK(B42),\"\",SUBTOTAL(103,$B$3:B42))","v":40},"Medicines","Diclofenac Sodium 75 Mg","Ampoule"]
[{"$f":"IF(ISBLANK(B43),\"\",SUBTOTAL(103,$B$3:B43))","v":41},"Medicines","Diclofenac Sodium Gel","gel"]
[{"$f":"IF(ISBLANK(B44),\"\",SUBTOTAL(103,$B$3:B44))","v":42},"Medicines","Digoxin 0.25 mg","Tablet"]
[{"$f":"IF(ISBLANK(B45),\"\",SUBTOTAL(103,$B$3:B45))","v":43},"Medicines","Enalapril maleate 5Mg","Tablet"]
[{"$f":"IF(ISBLANK(B46),\"\",SUBTOTAL(103,$B$3:B46))","v":44},"Medicines","Epinephrine (Adrenaline) Tartrate, Eq.1mg/Ml Base, Im Inject., 1ml","Ampoule"]
[{"$f":"IF(ISBLANK(B47),\"\",SUBTOTAL(103,$B$3:B47))","v":45},"Medicines","Ethinylestr. 0.03 mg / Levonorgestrel 0.15 mg, Blister 28tab","Tablet"]
[{"$f":"IF(ISBLANK(B48),\"\",SUBTOTAL(103,$B$3:B48))","v":46},"Medicines","Etoricoxibe 90mg","Tablet"]
[{"$f":"IF(ISBLANK(B49),\"\",SUBTOTAL(103,$B$3:B49))","v":47},"Medicines","Ferrous Salt Eq. 60 mg Iron / Folic Acid 0.4 mg, Tab","Tablet"]
[{"$f":"IF(ISBLANK(B50),\"\",SUBTOTAL(103,$B$3:B50))","v":48},"Medicines","Ferrous Salt, Eq. Iron 45mg/5ml, Syrup, 200ml, Bot.","Bottle"]
[{"$f":"IF(ISBLANK(B51),\"\",SUBTOTAL(103,$B$3:B51))","v":49},"Medicines","Folic Acid 5Mg","Tablet"]
[{"$f":"IF(ISBLANK(B52),\"\",SUBTOTAL(103,$B$3:B52))","v":50},"Medicines","Furosemide, 40 mg, Tab.","Tablet"]
[{"$f":"IF(ISBLANK(B53),\"\",SUBTOTAL(103,$B$3:B53))","v":51},"Medicines","Gliclazide 80Mg","Tablet"]
[{"$f":"IF(ISBLANK(B54),\"\",SUBTOTAL(103,$B$3:B54))","v":52},"Medicines","Hydrocortisone 1% Cream, Topical 20mg","Cream"]
[{"$f":"IF(ISBLANK(B55),\"\",SUBTOTAL(103,$B$3:B55))","v":53},"Medicines","hydrocortisone 100mg","Vial"]
[{"$f":"IF(ISBLANK(B56),\"\",SUBTOTAL(103,$B$3:B56))","v":54},"Medicines","Hyoscine Butylbromide (Scopolamine Butylbrom), 20 mg/1ml,Amp","Ampoule"]
[{"$f":"IF(ISBLANK(B57),\"\",SUBTOTAL(103,$B$3:B57))","v":55},"Medicines","Hyoscine Butylbromide (Scopolamine Butylbromide), 10 mg, Tab","Tablet"]
[{"$f":"IF(ISBLANK(B58),\"\",SUBTOTAL(103,$B$3:B58))","v":56},"Medicines","Ibuprofen 400Mg","Tablet"]
[{"$f":"IF(ISBLANK(B59),\"\",SUBTOTAL(103,$B$3:B59))","v":57},"Medicines","Ibuprofen, 100mg/5ml, Oral Susp., 150 Ml, Bot.","Oral Suspension"]
[{"$f":"IF(ISBLANK(B60),\"\",SUBTOTAL(103,$B$3:B60))","v":58},"Medicines","Isosorbide Dinitrate 10Mg","Tablet"]
[{"$f":"IF(ISBLANK(B61),\"\",SUBTOTAL(103,$B$3:B61))","v":59},"Medicines","Lactulose, 3.1 G/5ml, Oral Sol., Bot.","Bottle"]
[{"$f":"IF(ISBLANK(B62),\"\",SUBTOTAL(103,$B$3:B62))","v":60},"Medicines","Lansoprazole 30mg","Capsule"]
[{"$f":"IF(ISBLANK(B63),\"\",SUBTOTAL(103,$B$3:B63))","v":61},"Medicines","Levetiracetam 500 mg Tab","Tablet"]
[{"$f":"IF(ISBLANK(B64),\"\",SUBTOTAL(103,$B$3:B64))","v":62},"Medicines","Levothyroxine Sodium 100 Mcg Tab","Tablet"]
[{"$f":"IF(ISBLANK(B65),\"\",SUBTOTAL(103,$B$3:B65))","v":63},"Medicines","Lidocaine Hydrochloride, 2%, Preservative-Free, 5Ml, Amp","Ampoule"]
[{"$f":"IF(ISBLANK(B66),\"\",SUBTOTAL(103,$B$3:B66))","v":64},"Medicines","Lincomycin-300mg","Ampoule"]
[{"$f":"IF(ISBLANK(B67),\"\",SUBTOTAL(103,$B$3:B67))","v":65},"Medicines","Lincomycin-600 mg","Ampoule"]
[{"$f":"IF(ISBLANK(B68),\"\",SUBTOTAL(103,$B$3:B68))","v":66},"Medicines","Loratadine 2.5mg/5ml","Syr"]
[{"$f":"IF(ISBLANK(B69),\"\",SUBTOTAL(103,$B$3:B69))","v":67},"Medicines","Loratadine 5Mg","Tablet"]
[{"$f":"IF(ISBLANK(B70),\"\",SUBTOTAL(103,$B$3:B70))","v":68},"Medicines","Loratadine, 10mg, Tab.","Tablet"]
[{"$f":"IF(ISBLANK(B71),\"\",SUBTOTAL(103,$B$3:B71))","v":69},"Medicines","Losartan 50mg+Hydrochlorthiazide 12.5","Tablet"]
[{"$f":"IF(ISBLANK(B72),\"\",SUBTOTAL(103,$B$3:B72))","v":70},"Medicines","Metformin Hcl 1000mg","Tablet"]
[{"$f":"IF(ISBLANK(B73),\"\",SUBTOTAL(103,$B$3:B73))","v":71},"Medicines","Metoprolol Tartarat 50 mg","Tablet"]
[{"$f":"IF(ISBLANK(B74),\"\",SUBTOTAL(103,$B$3:B74))","v":72},"Medicines","Metronidazole 125Mg/5Ml Syrup","Bottle"]
[{"$f":"IF(ISBLANK(B75),\"\",SUBTOTAL(103,$B$3:B75))","v":73},"Medicines","Metronidazole 500mg","Tablet"]
[{"$f":"IF(ISBLANK(B76),\"\",SUBTOTAL(103,$B$3:B76))","v":74},"Medicines","Metronidazole, 5 mg/Ml, 100 Ml, Semi-Rigid Bot. Pvc Free","Vial"]
[{"$f":"IF(ISBLANK(B77),\"\",SUBTOTAL(103,$B$3:B77))","v":75},"Medicines","Miconazole Nitrate, 2%, Cream, 30 G, Tube","Tube"]
[{"$f":"IF(ISBLANK(B78),\"\",SUBTOTAL(103,$B$3:B78))","v":76},"Medicines","misoprostol 200mcg","Tablet"]
[{"$f":"IF(ISBLANK(B79),\"\",SUBTOTAL(103,$B$3:B79))","v":77},"Medicines","Nystatin, 100,000 Iu/Ml, Oral Susp. + Graduated Dropper","Oral Suspension"]
[{"$f":"IF(ISBLANK(B80),\"\",SUBTOTAL(103,$B$3:B80))","v":78},"Medicines","Omeprazole Sodium, Eq. 40 mg Base, Powder, Vial, Fr Infusion","Vial"]
[{"$f":"IF(ISBLANK(B81),\"\",SUBTOTAL(103,$B$3:B81))","v":79},"Medicines","Omeprazole, 40 mg","Capsule"]
[{"$f":"IF(ISBLANK(B82),\"\",SUBTOTAL(103,$B$3:B82))","v":80},"Medicines","Ondansetron Hydrochloride, Eq. 8 mg Base, Tab.","Tablet"]
[{"$f":"IF(ISBLANK(B83),\"\",SUBTOTAL(103,$B$3:B83))","v":81},"Medicines","Ondansterone 4mg/5ml Syr","Syr"]
[{"$f":"IF(ISBLANK(B84),\"\",SUBTOTAL(103,$B$3:B84))","v":82},"Medicines","Ondansterone 8Mg amp","Ampoule"]
[{"$f":"IF(ISBLANK(B85),\"\",SUBTOTAL(103,$B$3:B85))","v":83},"Medicines","Oxytocin 10 Ui / Ml","Ampoule"]
[{"$f":"IF(ISBLANK(B86),\"\",SUBTOTAL(103,$B$3:B86))","v":84},"Medicines","Paracetamol (Acetaminophen), 100 mg, Tab.","Tablet"]
[{"$f":"IF(ISBLANK(B87),\"\",SUBTOTAL(103,$B$3:B87))","v":85},"Medicines","Paracetamol (Acetaminophen), 120mg/5ml,Oral Susp.,100ml Bot.","Oral Suspension"]
[{"$f":"IF(ISBLANK(B88),\"\",SUBTOTAL(103,$B$3:B88))","v":86},"Medicines","Paracetamol (Acetaminophen), 500 mg, Tab.","Tablet"]
[{"$f":"IF(ISBLANK(B89),\"\",SUBTOTAL(103,$B$3:B89))","v":87},"Medicines","Paracetamol (Acetaminophen),10 mg/Ml, 100Ml, Bot.","Bottle"]
[{"$f":"IF(ISBLANK(B90),\"\",SUBTOTAL(103,$B$3:B90))","v":88},"Medicines","Paracetamol 300mg + Chlorezoxazone 250mg Tab","Tablet"]
[{"$f":"IF(ISBLANK(B91),\"\",SUBTOTAL(103,$B$3:B91))","v":89},"Medicines","Phenobarbital 15mg","Tablet"]
[{"$f":"IF(ISBLANK(B92),\"\",SUBTOTAL(103,$B$3:B92))","v":90},"Medicines","Phenytoin Sodium, 100 mg, Tab.","Tablet"]
[{"$f":"IF(ISBLANK(B93),\"\",SUBTOTAL(103,$B$3:B93))","v":91},"Medicines","Polyvidone Iodine, 10%, Solution, 1000Ml, Dropper Bot.","Bottle"]
[{"$f":"IF(ISBLANK(B94),\"\",SUBTOTAL(103,$B$3:B94))","v":92},"Medicines","PREDNISOLONE 5Mg","Tablet"]
[{"$f":"IF(ISBLANK(B95),\"\",SUBTOTAL(103,$B$3:B95))","v":93},"Medicines","Ringer Lactate, 500 Ml, Flex. Bag, Pvc Free","Bag"]
[{"$f":"IF(ISBLANK(B96),\"\",SUBTOTAL(103,$B$3:B96))","v":94},"Medicines","Salbutamol 2.5mg/ 2.5ml  nebulized","nebulized"]
[{"$f":"IF(ISBLANK(B97),\"\",SUBTOTAL(103,$B$3:B97))","v":95},"Medicines","Salbutamol 2Mg -100Mcg/Ml 200 Doses Spray","Inhaler"]
[{"$f":"IF(ISBLANK(B98),\"\",SUBTOTAL(103,$B$3:B98))","v":96},"Medicines","Sodium Chloride, 0.9%, 1 L, Flex. Bag, Pvc Free","Bag"]
[{"$f":"IF(ISBLANK(B99),\"\",SUBTOTAL(103,$B$3:B99))","v":97},"Medicines","Sulfadiazine Silver, 1%, Cream, Sterile, 50 G, Tube","Tube"]
[{"$f":"IF(ISBLANK(B100),\"\",SUBTOTAL(103,$B$3:B100))","v":98},"Medicines","Tramadol Hydrochloride, 50 mg/Ml, 2 Ml, Amp.","Ampoule"]
[{"$f":"IF(ISBLANK(B101),\"\",SUBTOTAL(103,$B$3:B101))","v":99},"Medicines","Valproate Sodium, 200 mg, Gastro-Resistant Tab.","Tablet"]
[{"$f":"IF(ISBLANK(B102),\"\",SUBTOTAL(103,$B$3:B102))","v":100},"Medicines","Valproate Sodium, 200 mg/Ml, 40 Ml, Bot. + Syringe","Bottle"]
[{"$f":"IF(ISBLANK(B103),\"\",SUBTOTAL(103,$B$3:B103))","v":101},"Medicines","Valproate Sodium, 500 mg, Gastro-Resistant Tab.","Tablet"]
[{"$f":"IF(ISBLANK(B104),\"\",SUBTOTAL(103,$B$3:B104))","v":102},"Medicines","Vit D3 400 Iu Syr","Syr"]
[{"$f":"IF(ISBLANK(B105),\"\",SUBTOTAL(103,$B$3:B105))","v":103},"Medicines","Vitamin K Amp 1mg/ml","Ampoule"]
[{"$f":"IF(ISBLANK(B106),\"\",SUBTOTAL(103,$B$3:B106))","v":104},"Medicines","Zinc Oxide, 10%, Ointment, 100 G, Tube","Tube"]
["Supplier Name | اسم المزود"]
["Supplier & Signature | توقيع وختم المزود"]

{"sheet":"BoQ 01 ( Financial )","index":2,"n_rows":109,"n_cols":7,"rows_kept":109,"cut":false,"hidden":false,"merged":[[0,3,0,6]]}
["BoQ 01",null,"PR/AL128H24&AL129H24/MSF-FRB.17 - B.12/GZT/PRO-HE/12-8-2024/Raju&Badanli-B.17 - B.12-012","Financial"]
["SN","Category\nKategori","Technical Specifications\nTeknik Özellikler","Unit\nBirim","Quantity\nMiktar ","UNIT PRICE","TOTAL PRICE"]
[{"$f":"IF(ISBLANK(B3),\"\",SUBTOTAL(103,$B$3:B3))","v":1},"Medicines","Acetylsalicylic Acid (Aspirin), 75 mg, Gastro-Resistant Tab.","Tablet",20000,null,{"$f":"Table145[[#This Row],[Quantity\nMiktar ]]*Table145[[#This Row],[UNIT PRICE]]","v":0}]
[{"$f":"IF(ISBLANK(B4),\"\",SUBTOTAL(103,$B$3:B4))","v":2},"Medicines","Allopurinol 300mg Tab","Tablet",2500,null,{"$f":"Table145[[#This Row],[Quantity\nMiktar ]]*Table145[[#This Row],[UNIT PRICE]]","v":0}]
[{"$f":"IF(ISBLANK(B5),\"\",SUBTOTAL(103,$B$3:B5))","v":3},"Medicines","Aluminium Hydroxide 400mg / Magnesium Hydrox. 400mg,Chew.Tab.","Tablet",5000,null,{"$f":"Table145[[#This Row],[Quantity\nMiktar ]]*Table145[[#This Row],[UNIT PRICE]]","v":0}]
[{"$f":"IF(ISBLANK(B6),\"\",SUBTOTAL(103,$B$3:B6))","v":4},"Medicines","Amikacin 100Mg","Ampoule",500,null,{"$f":"Table145[[#This Row],[Quantity\nMiktar ]]*Table145[[#This Row],[UNIT PRICE]]","v":0}]
[{"$f":"IF(ISBLANK(B7),\"\",SUBTOTAL(103,$B$3:B7))","v":5},"Medicines","Amikacin 500mg","Ampoule",500,null,{"$f":"Table145[[#This Row],[Quantity\nMiktar ]]*Table145[[#This Row],[UNIT PRICE]]","v":0}]
[{"$f":"IF(ISBLANK(B8),\"\",SUBTOTAL(103,$B$3:B8))","v":6},"Medicines","Amlodipine 5Mg","Tablet",10000,null,{"$f":"Table145[[#This Row],[Quantity\nMiktar ]]*Table145[[#This Row],[UNIT PRICE]]","v":0}]
[{"$f":"IF(ISBLANK(B9),\"\",SUBTOTAL(103,$B$3:B9))","v":7},"Medicines","Amlodipine/Valsartan 160/5","Tablet",5000,null,{"$f":"Table145[[#This Row],[Quantity\nMiktar ]]*Table145[[#This Row],[UNIT PRICE]]","v":0}]
[{"$f":"IF(ISBLANK(B10),\"\",SUBTOTAL(103,$B$3:B10))","v":8},"Medicines","Amoxicillin 228mg / Clavulanic Acid, Syrup 70ml","Bottle",100,null,{"$f":"Table145[[#This Row],[Quantity\nMiktar ]]*Table145[[#This Row],[UNIT PRICE]]","v":0}]
[{"$f":"IF(ISBLANK(B11),\"\",SUBTOTAL(103,$B$3:B11))","v":9},"Medicines","Amoxicillin 400mg / Clavulanic Acid, 57 mg / 5ml, Powder Oral Susp 70ml","Oral Suspension",400,null,{"$f":"Table145[[#This Row],[Quantity\nMiktar ]]*Table145[[#This Row],[UNIT PRICE]]","v":0}]
[{"$f":"IF(ISBLANK(B12),\"\",SUBTOTAL(103,$B$3:B12))","v":10},"Medicines","Amoxicillin 500mg, Tab.","Capsule",25000,null,{"$f":"Table145[[#This Row],[Quantity\nMiktar ]]*Table145[[#This Row],[UNIT PRICE]]","v":0}]
[{"$f":"IF(ISBLANK(B13),\"\",SUBTOTAL(103,$B$3:B13))","v":11},"Medicines","Amoxicillin 875mg / Clavulanic Acid 125mg, Tab","Tablet",4900,null,{"$f":"Table145[[#This Row],[Quantity\nMiktar ]]*Table145[[#This Row],[UNIT PRICE]]","v":0}]
[{"$f":"IF(ISBLANK(B14),\"\",SUBTOTAL(103,$B$3:B14))","v":12},"Medicines","Amoxicillin, 250mg/5ml, Powder Oral Susp., 100 Ml, Bot.","Oral Suspension",500,null,{"$f":"Table145[[#This Row],[Quantity\nMiktar ]]*Table145[[#This Row],[UNIT PRICE]]","v":0}]
[{"$f":"IF(ISBLANK(B15),\"\",SUBTOTAL(103,$B$3:B15))","v":13},"Medicines","Ascorbic Acid (Vitamin C), 250 mg, Tab.","Tablet",10000,null,{"$f":"Table145[[#This Row],[Quantity\nMiktar ]]*Table145[[#This Row],[UNIT PRICE]]","v":0}]
[{"$f":"IF(ISBLANK(B16),\"\",SUBTOTAL(103,$B$3:B16))","v":14},"Medicines","Atenolol 50mg","Tablet",2500,null,{"$f":"Table145[[#This Row],[Quantity\nMiktar ]]*Table145[[#This Row],[UNIT PRICE]]","v":0}]
[{"$f":"IF(ISBLANK(B17),\"\",SUBTOTAL(103,$B$3:B17))","v":15},"Medicines","Atorvastatin 40mg","Tablet",15000,null,{"$f":"Table145[[#This Row],[Quantity\nMiktar ]]*Table145[[#This Row],[UNIT PRICE]]","v":0}]
[{"$f":"IF(ISBLANK(B18),\"\",SUBTOTAL(103,$B$3:B18))","v":16},"Medicines","Azithromycin 200Mg/5Ml Syrup","Bottle",300,null,{"$f":"Table145[[#This Row],[Quantity\nMiktar ]]*Table145[[#This Row],[UNIT PRICE]]","v":0}]
[{"$f":"IF(ISBLANK(B19),\"\",SUBTOTAL(103,$B$3:B19))","v":17},"Medicines","Azithromycin 500Mg","Tablet",2250,null,{"$f":"Table145[[#This Row],[Quantity\nMiktar ]]*Table145[[#This Row],[UNIT PRICE]]","v":0}]
[{"$f":"IF(ISBLANK(B20),\"\",SUBTOTAL(103,$B$3:B20))","v":18},"Medicines","B.Comblex / Tab","Tablet",10000,null,{"$f":"Table145[[#This Row],[Quantity\nMiktar ]]*Table145[[#This Row],[UNIT PRICE]]","v":0}]
[{"$f":"IF(ISBLANK(B21),\"\",SUBTOTAL(103,$B$3:B21))","v":19},"Medicines","Beclometasone Dipropionate, 0.10mg","inhalation",500,null,{"$f":"Table145[[#This Row],[Quantity\nMiktar ]]*Table145[[#This Row],[UNIT PRICE]]","v":0}]
[{"$f":"IF(ISBLANK(B22),\"\",SUBTOTAL(103,$B$3:B22))","v":20},"Medicines","Benzyl Benzoate, 25%, Lotion, 100 ml","Bottle",250,null,{"$f":"Table145[[#This Row],[Quantity\nMiktar ]]*Table145[[#This Row],[UNIT PRICE]]","v":0}]
[{"$f":"IF(ISBLANK(B23),\"\",SUBTOTAL(103,$B$3:B23))","v":21},"Medicines","Bisacodyl 10 mg Tab ( Laxine )","Tablet",2500,null,{"$f":"Table145[[#This Row],[Quantity\nMiktar ]]*Table145[[#This Row],[UNIT PRICE]]","v":0}]
[{"$f":"IF(ISBLANK(B24),\"\",SUBTOTAL(103,$B$3:B24))","v":22},"Medicines","Bisoprolol 5Mg","Tablet",5000,null,{"$f":"Table145[[#This Row],[Quantity\nMiktar ]]*Table145[[#This Row],[UNIT PRICE]]","v":0}]
[{"$f":"IF(ISBLANK(B25),\"\",SUBTOTAL(103,$B$3:B25))","v":23},"Medicines","Bisoprolol Fumarate, 10 mg, Break.Tab.","Tablet",7500,null,{"$f":"Table145[[#This Row],[Quantity\nMiktar ]]*Table145[[#This Row],[UNIT PRICE]]","v":0}]
[{"$f":"IF(ISBLANK(B26),\"\",SUBTOTAL(103,$B$3:B26))","v":24},"Medicines","Calcium+Vit D3","Tablet",2500,null,{"$f":"Table145[[#This Row],[Quantity\nMiktar ]]*Table145[[#This Row],[UNIT PRICE]]","v":0}]
[{"$f":"IF(ISBLANK(B27),\"\",SUBTOTAL(103,$B$3:B27))","v":25},"Medicines","Carbamazepine, 200 mg, Tab.","Tablet",6000,null,{"$f":"Table145[[#This Row],[Quantity\nMiktar ]]*Table145[[#This Row],[UNIT PRICE]]","v":0}]
[{"$f":"IF(ISBLANK(B28),\"\",SUBTOTAL(103,$B$3:B28))","v":26},"Medicines","Carbamazepine, 400mg, Tab.","Tablet",3000,null,{"$f":"Table145[[#This Row],[Quantity\nMiktar ]]*Table145[[#This Row],[UNIT PRICE]]","v":0}]
[{"$f":"IF(ISBLANK(B29),\"\",SUBTOTAL(103,$B$3:B29))","v":27},"Medicines","Cefixime 400 Mg","Tablet",3000,null,{"$f":"Table145[[#This Row],[Quantity\nMiktar ]]*Table145[[#This Row],[UNIT PRICE]]","v":0}]
[{"$f":"IF(ISBLANK(B30),\"\",SUBTOTAL(103,$B$3:B30))","v":28},"Medicines","Cefixime, 100mg/5ml, Powder For Oral Susp., 60 Ml, Bot.","Bottle",250,null,{"$f":"Table145[[#This Row],[Quantity\nMiktar ]]*Table145[[#This Row],[UNIT PRICE]]","v":0}]
[{"$f":"IF(ISBLANK(B31),\"\",SUBTOTAL(103,$B$3:B31))","v":29},"Medicines","Ceftriaxone Sodium, Eq. 1 G Base, Powder, Vial","Vial",500,null,{"$f":"Table145[[#This Row],[Quantity\nMiktar ]]*Table145[[#This Row],[UNIT PRICE]]","v":0}]
[{"$f":"IF(ISBLANK(B32),\"\",SUBTOTAL(103,$B$3:B32))","v":30},"Medicines","Ceftriaxone Sodium, Eq.1 G Base, Powder, Vial + Lidocaine Im","Vial",500,null,{"$f":"Table145[[#This Row],[Quantity\nMiktar ]]*Table145[[#This Row],[UNIT PRICE]]","v":0}]
[{"$f":"IF(ISBLANK(B33),\"\",SUBTOTAL(103,$B$3:B33))","v":31},"Medicines","Chlorpheniramine Maleate (2mg) + Paracetamol (500mg) + Phenylephrine (10mg) Tab","Tablet",5000,null,{"$f":"Table145[[#This Row],[Quantity\nMiktar ]]*Table145[[#This Row],[UNIT PRICE]]","v":0}]
[{"$f":"IF(ISBLANK(B34),\"\",SUBTOTAL(103,$B$3:B34))","v":32},"Medicines","Ciprofloxacin Hydrochloride, Eq. 500 mg Base, Tab.","Tablet",10000,null,{"$f":"Table145[[#This Row],[Quantity\nMiktar ]]*Table145[[#This Row],[UNIT PRICE]]","v":0}]
[{"$f":"IF(ISBLANK(B35),\"\",SUBTOTAL(103,$B$3:B35))","v":33},"Medicines","Clopidogrel 75mg","Tablet",12500,null,{"$f":"Table145[[#This Row],[Quantity\nMiktar ]]*Table145[[#This Row],[UNIT PRICE]]","v":0}]
[{"$f":"IF(ISBLANK(B36),\"\",SUBTOTAL(103,$B$3:B36))","v":34},"Medicines","Clotrimazole 1% Topical Cream, Tube 20gr Tube","Cream",600,null,{"$f":"Table145[[#This Row],[Quantity\nMiktar ]]*Table145[[#This Row],[UNIT PRICE]]","v":0}]
[{"$f":"IF(ISBLANK(B37),\"\",SUBTOTAL(103,$B$3:B37))","v":35},"Medicines","Clotrimazole, 500 mg, Vaginal Tab. + Applicator","Ovuol",750,null,{"$f":"Table145[[#This Row],[Quantity\nMiktar ]]*Table145[[#This Row],[UNIT PRICE]]","v":0}]
[{"$f":"IF(ISBLANK(B38),\"\",SUBTOTAL(103,$B$3:B38))","v":36},"Medicines","Dexamethasone 8mg/ml 2 ml","Ampoule",1500,null,{"$f":"Table145[[#This Row],[Quantity\nMiktar ]]*Table145[[#This Row],[UNIT PRICE]]","v":0}]
[{"$f":"IF(ISBLANK(B39),\"\",SUBTOTAL(103,$B$3:B39))","v":37},"Medicines","Dextrose (Glucose), 5%, 1000 Ml, Flex. Bag, Pvc Free","Bag",250,null,{"$f":"Table145[[#This Row],[Quantity\nMiktar ]]*Table145[[#This Row],[UNIT PRICE]]","v":0}]
[{"$f":"IF(ISBLANK(B40),\"\",SUBTOTAL(103,$B$3:B40))","v":38},"Medicines","Diazepam 5mg/Ml ,2ml","Ampoule",100,null,{"$f":"Table145[[#This Row],[Quantity\nMiktar ]]*Table145[[#This Row],[UNIT PRICE]]","v":0}]
[{"$f":"IF(ISBLANK(B41),\"\",SUBTOTAL(103,$B$3:B41))","v":39},"Medicines","Diclofenac Sodium 25 mg","Suppostory",5000,null,{"$f":"Table145[[#This Row],[Quantity\nMiktar ]]*Table145[[#This Row],[UNIT PRICE]]","v":0}]
[{"$f":"IF(ISBLANK(B42),\"\",SUBTOTAL(103,$B$3:B42))","v":40},"Medicines","Diclofenac Sodium 75 Mg","Ampoule",1000,null,{"$f":"Table145[[#This Row],[Quantity\nMiktar ]]*Table145[[#This Row],[UNIT PRICE]]","v":0}]
[{"$f":"IF(ISBLANK(B43),\"\",SUBTOTAL(103,$B$3:B43))","v":41},"Medicines","Diclofenac Sodium Gel","gel",500,null,{"$f":"Table145[[#This Row],[Quantity\nMiktar ]]*Table145[[#This Row],[UNIT PRICE]]","v":0}]
[{"$f":"IF(ISBLANK(B44),\"\",SUBTOTAL(103,$B$3:B44))","v":42},"Medicines","Digoxin 0.25 mg","Tablet",1500,null,{"$f":"Table145[[#This Row],[Quantity\nMiktar ]]*Table145[[#This Row],[UNIT PRICE]]","v":0}]
[{"$f":"IF(ISBLANK(B45),\"\",SUBTOTAL(103,$B$3:B45))","v":43},"Medicines","Enalapril maleate 5Mg","Tablet",15000,null,{"$f":"Table145[[#This Row],[Quantity\nMiktar ]]*Table145[[#This Row],[UNIT PRICE]]","v":0}]
[{"$f":"IF(ISBLANK(B46),\"\",SUBTOTAL(103,$B$3:B46))","v":44},"Medicines","Epinephrine (Adrenaline) Tartrate, Eq.1mg/Ml Base, Im Inject., 1ml","Ampoule",500,null,{"$f":"Table145[[#This Row],[Quantity\nMiktar ]]*Table145[[#This Row],[UNIT PRICE]]","v":0}]
[{"$f":"IF(ISBLANK(B47),\"\",SUBTOTAL(103,$B$3:B47))","v":45},"Medicines","Ethinylestr. 0.03 mg / Levonorgestrel 0.15 mg, Blister 28tab","Tablet",14000,null,{"$f":"Table145[[#This Row],[Quantity\nMiktar ]]*Table145[[#This Row],[UNIT PRICE]]","v":0}]
[{"$f":"IF(ISBLANK(B48),\"\",SUBTOTAL(103,$B$3:B48))","v":46},"Medicines","Etoricoxibe 90mg","Tablet",5000,null,{"$f":"Table145[[#This Row],[Quantity\nMiktar ]]*Table145[[#This Row],[UNIT PRICE]]","v":0}]
[{"$f":"IF(ISBLANK(B49),\"\",SUBTOTAL(103,$B$3:B49))","v":47},"Medicines","Ferrous Salt Eq. 60 mg Iron / Folic Acid 0.4 mg, Tab","Tablet",25000,null,{"$f":"Table145[[#This Row],[Quantity\nMiktar ]]*Table145[[#This Row],[UNIT PRICE]]","v":0}]
[{"$f":"IF(ISBLANK(B50),\"\",SUBTOTAL(103,$B$3:B50))","v":48},"Medicines","Ferrous Salt, Eq. Iron 45mg/5ml, Syrup, 200ml, Bot.","Bottle",150,null,{"$f":"Table145[[#This Row],[Quantity\nMiktar ]]*Table145[[#This Row],[UNIT PRICE]]","v":0}]
[{"$f":"IF(ISBLANK(B51),\"\",SUBTOTAL(103,$B$3:B51))","v":49},"Medicines","Folic Acid 5Mg","Tablet",12500,null,{"$f":"Table145[[#This Row],[Quantity\nMiktar ]]*Table145[[#This Row],[UNIT PRICE]]","v":0}]
[{"$f":"IF(ISBLANK(B52),\"\",SUBTOTAL(103,$B$3:B52))","v":50},"Medicines","Furosemide, 40 mg, Tab.","Tablet",12500,null,{"$f":"Table145[[#This Row],[Quantity\nMiktar ]]*Table145[[#This Row],[UNIT PRICE]]","v":0}]
[{"$f":"IF(ISBLANK(B53),\"\",SUBTOTAL(103,$B$3:B53))","v":51},"Medicines","Gliclazide 80Mg","Tablet",17500,null,{"$f":"Table145[[#This Row],[Quantity\nMiktar ]]*Table145[[#This Row],[UNIT PRICE]]","v":0}]
[{"$f":"IF(ISBLANK(B54),\"\",SUBTOTAL(103,$B$3:B54))","v":52},"Medicines","Hydrocortisone 1% Cream, Topical 20mg","Cream",500,null,{"$f":"Table145[[#This Row],[Quantity\nMiktar ]]*Table145[[#This Row],[UNIT PRICE]]","v":0}]
[{"$f":"IF(ISBLANK(B55),\"\",SUBTOTAL(103,$B$3:B55))","v":53},"Medicines","hydrocortisone 100mg","Vial",250,null,{"$f":"Table145[[#This Row],[Quantity\nMiktar ]]*Table145[[#This Row],[UNIT PRICE]]","v":0}]
[{"$f":"IF(ISBLANK(B56),\"\",SUBTOTAL(103,$B$3:B56))","v":54},"Medicines","Hyoscine Butylbromide (Scopolamine Butylbrom), 20 mg/1ml,Amp","Ampoule",750,null,{"$f":"Table145[[#This Row],[Quantity\nMiktar ]]*Table145[[#This Row],[UNIT PRICE]]","v":0}]
[{"$f":"IF(ISBLANK(B57),\"\",SUBTOTAL(103,$B$3:B57))","v":55},"Medicines","Hyoscine Butylbromide (Scopolamine Butylbromide), 10 mg, Tab","Tablet",9000,null,{"$f":"Table145[[#This Row],[Quantity\nMiktar ]]*Table145[[#This Row],[UNIT PRICE]]","v":0}]
[{"$f":"IF(ISBLANK(B58),\"\",SUBTOTAL(103,$B$3:B58))","v":56},"Medicines","Ibuprofen 400Mg","Tablet",15000,null,{"$f":"Table145[[#This Row],[Quantity\nMiktar ]]*Table145[[#This Row],[UNIT PRICE]]","v":0}]
[{"$f":"IF(ISBLANK(B59),\"\",SUBTOTAL(103,$B$3:B59))","v":57},"Medicines","Ibuprofen, 100mg/5ml, Oral Susp., 150 Ml, Bot.","Oral Suspension",500,null,{"$f":"Table145[[#This Row],[Quantity\nMiktar ]]*Table145[[#This Row],[UNIT PRICE]]","v":0}]
[{"$f":"IF(ISBLANK(B60),\"\",SUBTOTAL(103,$B$3:B60))","v":58},"Medicines","Isosorbide Dinitrate 10Mg","Tablet",3000,null,{"$f":"Table145[[#This Row],[Quantity\nMiktar ]]*Table145[[#This Row],[UNIT PRICE]]","v":0}]
[{"$f":"IF(ISBLANK(B61),\"\",SUBTOTAL(103,$B$3:B61))","v":59},"Medicines","Lactulose, 3.1 G/5ml, Oral Sol., Bot.","Bottle",125,null,{"$f":"Table145[[#This Row],[Quantity\nMiktar ]]*Table145[[#This Row],[UNIT PRICE]]","v":0}]
[{"$f":"IF(ISBLANK(B62),\"\",SUBTOTAL(103,$B$3:B62))","v":60},"Medicines","Lansoprazole 30mg","Capsule",5000,null,{"$f":"Table145[[#This Row],[Quantity\nMiktar ]]*Table145[[#This Row],[UNIT PRICE]]","v":0}]
[{"$f":"IF(ISBLANK(B63),\"\",SUBTOTAL(103,$B$3:B63))","v":61},"Medicines","Levetiracetam 500 mg Tab","Tablet",2500,null,{"$f":"Table145[[#This Row],[Quantity\nMiktar ]]*Table145[[#This Row],[UNIT PRICE]]","v":0}]
[{"$f":"IF(ISBLANK(B64),\"\",SUBTOTAL(103,$B$3:B64))","v":62},"Medicines","Levothyroxine Sodium 100 Mcg Tab","Tablet",2500,null,{"$f":"Table145[[#This Row],[Quantity\nMiktar ]]*Table145[[#This Row],[UNIT PRICE]]","v":0}]
[{"$f":"IF(ISBLANK(B65),\"\",SUBTOTAL(103,$B$3:B65))","v":63},"Medicines","Lidocaine Hydrochloride, 2%, Preservative-Free, 5Ml, Amp","Ampoule",150,null,{"$f":"Table145[[#This Row],[Quantity\nMiktar ]]*Table145[[#This Row],[UNIT PRICE]]","v":0}]
[{"$f":"IF(ISBLANK(B66),\"\",SUBTOTAL(103,$B$3:B66))","v":64},"Medicines","Lincomycin-300mg","Ampoule",250,null,{"$f":"Table145[[#This Row],[Quantity\nMiktar ]]*Table145[[#This Row],[UNIT PRICE]]","v":0}]
[{"$f":"IF(ISBLANK(B67),\"\",SUBTOTAL(103,$B$3:B67))","v":65},"Medicines","Lincomycin-600 mg","Ampoule",500,null,{"$f":"Table145[[#This Row],[Quantity\nMiktar ]]*Table145[[#This Row],[UNIT PRICE]]","v":0}]
[{"$f":"IF(ISBLANK(B68),\"\",SUBTOTAL(103,$B$3:B68))","v":66},"Medicines","Loratadine 2.5mg/5ml","Syr",150,null,{"$f":"Table145[[#This Row],[Quantity\nMiktar ]]*Table145[[#This Row],[UNIT PRICE]]","v":0}]
[{"$f":"IF(ISBLANK(B69),\"\",SUBTOTAL(103,$B$3:B69))","v":67},"Medicines","Loratadine 5Mg","Tablet",5000,null,{"$f":"Table145[[#This Row],[Quantity\nMiktar ]]*Table145[[#This Row],[UNIT PRICE]]","v":0}]
[{"$f":"IF(ISBLANK(B70),\"\",SUBTOTAL(103,$B$3:B70))","v":68},"Medicines","Loratadine, 10mg, Tab.","Tablet",5000,null,{"$f":"Table145[[#This Row],[Quantity\nMiktar ]]*Table145[[#This Row],[UNIT PRICE]]","v":0}]
[{"$f":"IF(ISBLANK(B71),\"\",SUBTOTAL(103,$B$3:B71))","v":69},"Medicines","Losartan 50mg+Hydrochlorthiazide 12.5","Tablet",5000,null,{"$f":"Table145[[#This Row],[Quantity\nMiktar ]]*Table145[[#This Row],[UNIT PRICE]]","v":0}]
[{"$f":"IF(ISBLANK(B72),\"\",SUBTOTAL(103,$B$3:B72))","v":70},"Medicines","Metformin Hcl 1000mg","Tablet",22500,null,{"$f":"Table145[[#This Row],[Quantity\nMiktar ]]*Table145[[#This Row],[UNIT PRICE]]","v":0}]
[{"$f":"IF(ISBLANK(B73),\"\",SUBTOTAL(103,$B$3:B73))","v":71},"Medicines","Metoprolol Tartarat 50 mg","Tablet",7500,null,{"$f":"Table145[[#This Row],[Quantity\nMiktar ]]*Table145[[#This Row],[UNIT PRICE]]","v":0}]
[{"$f":"IF(ISBLANK(B74),\"\",SUBTOTAL(103,$B$3:B74))","v":72},"Medicines","Metronidazole 125Mg/5Ml Syrup","Bottle",700,null,{"$f":"Table145[[#This Row],[Quantity\nMiktar ]]*Table145[[#This Row],[UNIT PRICE]]","v":0}]
[{"$f":"IF(ISBLANK(B75),\"\",SUBTOTAL(103,$B$3:B75))","v":73},"Medicines","Metronidazole 500mg","Tablet",12500,null,{"$f":"Table145[[#This Row],[Quantity\nMiktar ]]*Table145[[#This Row],[UNIT PRICE]]","v":0}]
[{"$f":"IF(ISBLANK(B76),\"\",SUBTOTAL(103,$B$3:B76))","v":74},"Medicines","Metronidazole, 5 mg/Ml, 100 Ml, Semi-Rigid Bot. Pvc Free","Vial",500,null,{"$f":"Table145[[#This Row],[Quantity\nMiktar ]]*Table145[[#This Row],[UNIT PRICE]]","v":0}]
[{"$f":"IF(ISBLANK(B77),\"\",SUBTOTAL(103,$B$3:B77))","v":75},"Medicines","Miconazole Nitrate, 2%, Cream, 30 G, Tube","Tube",500,null,{"$f":"Table145[[#This Row],[Quantity\nMiktar ]]*Table145[[#This Row],[UNIT PRICE]]","v":0}]
[{"$f":"IF(ISBLANK(B78),\"\",SUBTOTAL(103,$B$3:B78))","v":76},"Medicines","misoprostol 200mcg","Tablet",500,null,{"$f":"Table145[[#This Row],[Quantity\nMiktar ]]*Table145[[#This Row],[UNIT PRICE]]","v":0}]
[{"$f":"IF(ISBLANK(B79),\"\",SUBTOTAL(103,$B$3:B79))","v":77},"Medicines","Nystatin, 100,000 Iu/Ml, Oral Susp. + Graduated Dropper","Oral Suspension",500,null,{"$f":"Table145[[#This Row],[Quantity\nMiktar ]]*Table145[[#This Row],[UNIT PRICE]]","v":0}]
[{"$f":"IF(ISBLANK(B80),\"\",SUBTOTAL(103,$B$3:B80))","v":78},"Medicines","Omeprazole Sodium, Eq. 40 mg Base, Powder, Vial, Fr Infusion","Vial",500,null,{"$f":"Table145[[#This Row],[Quantity\nMiktar ]]*Table145[[#This Row],[UNIT PRICE]]","v":0}]
[{"$f":"IF(ISBLANK(B81),\"\",SUBTOTAL(103,$B$3:B81))","v":79},"Medicines","Omeprazole, 40 mg","Capsule",12500,null,{"$f":"Table145[[#This Row],[Quantity\nMiktar ]]*Table145[[#This Row],[UNIT PRICE]]","v":0}]
[{"$f":"IF(ISBLANK(B82),\"\",SUBTOTAL(103,$B$3:B82))","v":80},"Medicines","Ondansetron Hydrochloride, Eq. 8 mg Base, Tab.","Tablet",6500,null,{"$f":"Table145[[#This Row],[Quantity\nMiktar ]]*Table145[[#This Row],[UNIT PRICE]]","v":0}]
[{"$f":"IF(ISBLANK(B83),\"\",SUBTOTAL(103,$B$3:B83))","v":81},"Medicines","Ondansterone 4mg/5ml Syr","Syr",300,null,{"$f":"Table145[[#This Row],[Quantity\nMiktar ]]*Table145[[#This Row],[UNIT PRICE]]","v":0}]
[{"$f":"IF(ISBLANK(B84),\"\",SUBTOTAL(103,$B$3:B84))","v":82},"Medicines","Ondansterone 8Mg amp","Ampoule",750,null,{"$f":"Table145[[#This Row],[Quantity\nMiktar ]]*Table145[[#This Row],[UNIT PRICE]]","v":0}]
[{"$f":"IF(ISBLANK(B85),\"\",SUBTOTAL(103,$B$3:B85))","v":83},"Medicines","Oxytocin 10 Ui / Ml","Ampoule",125,null,{"$f":"Table145[[#This Row],[Quantity\nMiktar ]]*Table145[[#This Row],[UNIT PRICE]]","v":0}]
[{"$f":"IF(ISBLANK(B86),\"\",SUBTOTAL(103,$B$3:B86))","v":84},"Medicines","Paracetamol (Acetaminophen), 100 mg, Tab.","Tablet",2500,null,{"$f":"Table145[[#This Row],[Quantity\nMiktar ]]*Table145[[#This Row],[UNIT PRICE]]","v":0}]
[{"$f":"IF(ISBLANK(B87),\"\",SUBTOTAL(103,$B$3:B87))","v":85},"Medicines","Paracetamol (Acetaminophen), 120mg/5ml,Oral Susp.,100ml Bot.","Oral Suspension",975,null,{"$f":"Table145[[#This Row],[Quantity\nMiktar ]]*Table145[[#This Row],[UNIT PRICE]]","v":0}]
[{"$f":"IF(ISBLANK(B88),\"\",SUBTOTAL(103,$B$3:B88))","v":86},"Medicines","Paracetamol (Acetaminophen), 500 mg, Tab.","Tablet",40000,null,{"$f":"Table145[[#This Row],[Quantity\nMiktar ]]*Table145[[#This Row],[UNIT PRICE]]","v":0}]
[{"$f":"IF(ISBLANK(B89),\"\",SUBTOTAL(103,$B$3:B89))","v":87},"Medicines","Paracetamol (Acetaminophen),10 mg/Ml, 100Ml, Bot.","Bottle",500,null,{"$f":"Table145[[#This Row],[Quantity\nMiktar ]]*Table145[[#This Row],[UNIT PRICE]]","v":0}]
[{"$f":"IF(ISBLANK(B90),\"\",SUBTOTAL(103,$B$3:B90))","v":88},"Medicines","Paracetamol 300mg + Chlorezoxazone 250mg Tab","Tablet",5000,null,{"$f":"Table145[[#This Row],[Quantity\nMiktar ]]*Table145[[#This Row],[UNIT PRICE]]","v":0}]
[{"$f":"IF(ISBLANK(B91),\"\",SUBTOTAL(103,$B$3:B91))","v":89},"Medicines","Phenobarbital 15mg","Tablet",500,null,{"$f":"Table145[[#This Row],[Quantity\nMiktar ]]*Table145[[#This Row],[UNIT PRICE]]","v":0}]
[{"$f":"IF(ISBLANK(B92),\"\",SUBTOTAL(103,$B$3:B92))","v":90},"Medicines","Phenytoin Sodium, 100 mg, Tab.","Tablet",1000,null,{"$f":"Table145[[#This Row],[Quantity\nMiktar ]]*Table145[[#This Row],[UNIT PRICE]]","v":0}]
[{"$f":"IF(ISBLANK(B93),\"\",SUBTOTAL(103,$B$3:B93))","v":91},"Medicines","Polyvidone Iodine, 10%, Solution, 1000Ml, Dropper Bot.","Bottle",50,null,{"$f":"Table145[[#This Row],[Quantity\nMiktar ]]*Table145[[#This Row],[UNIT PRICE]]","v":0}]
[{"$f":"IF(ISBLANK(B94),\"\",SUBTOTAL(103,$B$3:B94))","v":92},"Medicines","PREDNISOLONE 5Mg","Tablet",12500,null,{"$f":"Table145[[#This Row],[Quantity\nMiktar ]]*Table145[[#This Row],[UNIT PRICE]]","v":0}]
[{"$f":"IF(ISBLANK(B95),\"\",SUBTOTAL(103,$B$3:B95))","v":93},"Medicines","Ringer Lactate, 500 Ml, Flex. Bag, Pvc Free","Bag",250,null,{"$f":"Table145[[#This Row],[Quantity\nMiktar ]]*Table145[[#This Row],[UNIT PRICE]]","v":0}]
[{"$f":"IF(ISBLANK(B96),\"\",SUBTOTAL(103,$B$3:B96))","v":94},"Medicines","Salbutamol 2.5mg/ 2.5ml  nebulized","nebulized",1500,null,{"$f":"Table145[[#This Row],[Quantity\nMiktar ]]*Table145[[#This Row],[UNIT PRICE]]","v":0}]
[{"$f":"IF(ISBLANK(B97),\"\",SUBTOTAL(103,$B$3:B97))","v":95},"Medicines","Salbutamol 2Mg -100Mcg/Ml 200 Doses Spray","Inhaler",1000,null,{"$f":"Table145[[#This Row],[Quantity\nMiktar ]]*Table145[[#This Row],[UNIT PRICE]]","v":0}]
[{"$f":"IF(ISBLANK(B98),\"\",SUBTOTAL(103,$B$3:B98))","v":96},"Medicines","Sodium Chloride, 0.9%, 1 L, Flex. Bag, Pvc Free","Bag",150,null,{"$f":"Table145[[#This Row],[Quantity\nMiktar ]]*Table145[[#This Row],[UNIT PRICE]]","v":0}]
[{"$f":"IF(ISBLANK(B99),\"\",SUBTOTAL(103,$B$3:B99))","v":97},"Medicines","Sulfadiazine Silver, 1%, Cream, Sterile, 50 G, Tube","Tube",150,null,{"$f":"Table145[[#This Row],[Quantity\nMiktar ]]*Table145[[#This Row],[UNIT PRICE]]","v":0}]
[{"$f":"IF(ISBLANK(B100),\"\",SUBTOTAL(103,$B$3:B100))","v":98},"Medicines","Tramadol Hydrochloride, 50 mg/Ml, 2 Ml, Amp.","Ampoule",50,null,{"$f":"Table145[[#This Row],[Quantity\nMiktar ]]*Table145[[#This Row],[UNIT PRICE]]","v":0}]
[{"$f":"IF(ISBLANK(B101),\"\",SUBTOTAL(103,$B$3:B101))","v":99},"Medicines","Valproate Sodium, 200 mg, Gastro-Resistant Tab.","Tablet",3000,null,{"$f":"Table145[[#This Row],[Quantity\nMiktar ]]*Table145[[#This Row],[UNIT PRICE]]","v":0}]
[{"$f":"IF(ISBLANK(B102),\"\",SUBTOTAL(103,$B$3:B102))","v":100},"Medicines","Valproate Sodium, 200 mg/Ml, 40 Ml, Bot. + Syringe","Bottle",155,null,{"$f":"Table145[[#This Row],[Quantity\nMiktar ]]*Table145[[#This Row],[UNIT PRICE]]","v":0}]
[{"$f":"IF(ISBLANK(B103),\"\",SUBTOTAL(103,$B$3:B103))","v":101},"Medicines","Valproate Sodium, 500 mg, Gastro-Resistant Tab.","Tablet",7500,null,{"$f":"Table145[[#This Row],[Quantity\nMiktar ]]*Table145[[#This Row],[UNIT PRICE]]","v":0}]
[{"$f":"IF(ISBLANK(B104),\"\",SUBTOTAL(103,$B$3:B104))","v":102},"Medicines","Vit D3 400 Iu Syr","Syr",750,null,{"$f":"Table145[[#This Row],[Quantity\nMiktar ]]*Table145[[#This Row],[UNIT PRICE]]","v":0}]
[{"$f":"IF(ISBLANK(B105),\"\",SUBTOTAL(103,$B$3:B105))","v":103},"Medicines","Vitamin K Amp 1mg/ml","Ampoule",250,null,{"$f":"Table145[[#This Row],[Quantity\nMiktar ]]*Table145[[#This Row],[UNIT PRICE]]","v":0}]
[{"$f":"IF(ISBLANK(B106),\"\",SUBTOTAL(103,$B$3:B106))","v":104},"Medicines","Zinc Oxide, 10%, Ointment, 100 G, Tube","Tube",500,null,{"$f":"Table145[[#This Row],[Quantity\nMiktar ]]*Table145[[#This Row],[UNIT PRICE]]","v":0}]
[null,null,"Total",null,null,null,{"$f":"SUBTOTAL(109,Table145[TOTAL PRICE])","v":0}]
["Supplier Name | اسم المزود"]
["Supplier & Signature | توقيع وختم المزود"]